bitfinex-derivatives/quotes_ETHF0:USTF0_20250428
["timestamp","ask_amount","ask_price","bid_price","bid_amount"]
[1745798882018,31.11252541,1782.2,1782.1,67.32571]
[1745798882209,26.15452541,1782.2,1782.1,72.32571]
[1745798882404,3.802,1782.2,1782.1,72.32571]
[1745798882617,3.2078,1782.8,1782.2,5.18531089]
[1745798882814,3.2078,1782.8,1782.7,1.12153]
[1745798883110,17.0098,1782.8,1782.5,1.12163]
[1745798883318,3.2078,1782.6,1782.5,1.12163]
[1745798883706,29.25746767,1782.6,1782.5,1.12163]
[1745798884209,28.05946767,1782.6,1781.7,6.0131]
[1745798884411,3.2078,1781.9,1781.8,1.1221]
[1745798884613,2.036,1781.9,1781.8,1.1221]
[1745798884818,4.8062,1782.5,1782.1,2.80465]
[1745798885005,14.8062,1782.5,1782.4,1.12172]
[1745798885211,3.802,1782.5,1782.4,1.12172]
[1745798886518,17.0098,1782.5,1782.4,1.12172]
[1745798886720,17.72508995,1782.5,1782.4,1.12172]
[1745798886922,17.72508995,1782.5,1781.5,8.81909]
[1745798887120,3.2078,1782.3,1782.2,1.12184]
[1745798887621,3.69280182,1782.3,1782.2,1.12184]
[1745798887821,3.69280013,1782.3,1782.2,1.12184]
[1745798888120,3.92308995,1782.5,1782.4,1.12172]
[1745798888325,2.42833995,1782.5,1782.4,1.12172]
[1745798888621,16.04966767,1782.6,1782.5,1.12166]
[1745798888821,29.74429486,1782.6,1782.5,1.12166]
[1745798889021,19.74429486,1782.6,1782.5,1.12166]
[1745798889319,23.54629486,1782.6,1782.5,1.12166]
[1745798889710,38.54629486,1782.6,1781.9,2.80509]
[1745798890020,3.2078,1782.0,1781.9,1.12203]
[1745798890222,3.69664589,1782.0,1781.9,1.12203]
[1745798891110,13.69664589,1782.0,1781.3,2.80599]
[1745798891418,3.2078,1781.6,1781.5,1.12224]
[1745798891616,3.69664589,1781.6,1781.5,1.12224]
[1745798892124,7.49864589,1781.6,1781.5,1.12224]
[1745798892320,22.49864589,1781.6,1780.7,62.973]
[1745798892624,3.2078,1781.1,1781.0,1.1226]
[1745798892922,3.69664589,1781.1,1781.0,1.1226]
[1745798893116,7.49864589,1781.1,1781.0,1.1226]
[1745798894411,4.29366815,1781.1,1781.0,6.1226]
[1745798894724,8.15e-06,1781.1,1781.0,1.1226]
[1745798895123,3.80200815,1781.1,1781.0,1.1226]
[1745798895329,22.00980815,1781.1,1781.0,1.1226]
[1745798896010,22.00980815,1781.1,1780.7,31.76871134]
[1745798896214,22.0098,1781.1,1781.0,1.1226]
[1745798896415,22.0098,1781.1,1780.3,0.09770876]
[1745798896612,1.12303,1780.4,1780.0,1.12319]
[1745798896822,4.331,1780.1,1779.8,64.10333]
[1745798897016,3.2078,1779.9,1779.6,1.12345]
[1745798897215,3.2078,1779.7,1779.2,62.98]
[1745798897617,3.2078,1779.7,1778.9,2.80978]
[1745798897618,3.2078,1779.5,1778.7,2.90792051]
[1745798897824,15.0,1779.7,1779.1,1.1238]
[1745798897825,3.2078,1779.2,1779.1,1.1238]
[1745798898219,22.0098,1779.2,1779.1,1.1238]
[1745798898426,23.13359,1779.2,1778.8,1.12397]
[1745798898623,3.2078,1778.9,1778.3,62.986]
[1745798898821,3.2078,1778.9,1778.8,1.12399]
[1745798899014,18.2078,1778.9,1778.3,62.986]
[1745798899320,3.2078,1778.7,1778.6,1.12412]
[1745798899518,3.2078,1778.7,1778.3,62.986]
[1745798899718,3.2078,1778.5,1777.8,2.81156]
[1745798899921,3.2078,1778.5,1777.9,2.8114]
[1745798900119,21.98430369,1778.5,1778.3,1.12424]
[1745798900325,21.98430369,1778.5,1777.7,2.81172]
[1745798900522,21.98430369,1778.5,1778.3,1.12427]
[1745798901319,13.32601809,1778.4,1778.3,1.12427]
[1745798901518,14.45028809,1778.4,1777.9,1.12451]
[1745798901718,3.2078,1778.1,1778.0,1.12449]
[1745798902028,3.2078,1778.3,1778.2,1.12437]
[1745798902616,11.57280809,1778.4,1778.3,1.1243]
[1745798902819,11.57280809,1778.4,1778.3,4.3321]
[1745798903220,14.18129809,1778.4,1778.3,4.3321]
[1745798903417,11.43081809,1778.4,1778.3,4.3321]
[1745798903625,9.74159809,1778.4,1778.3,4.3321]
[1745798903817,2.48025,1778.4,1778.0,0.09787089]
[1745798904023,0.91725,1778.4,1778.3,1.1243]
[1745798904223,7.21047788,1778.6,1778.5,1.12418]
[1745798904423,3.03254788,1778.6,1778.5,64.16218]
[1745798904624,3.3483,1779.3,1779.1,1.12378]
[1745798904926,1.12376,1779.2,1778.8,1.12396]
[1745798905124,3.2078,1779.0,1778.5,63.038]
[1745798905333,4.33168,1779.0,1778.5,63.038]
[1745798905527,18.2078,1779.0,1778.8,1.12395]
[1745798905730,18.2078,1779.0,1778.9,1.12393]
[1745798905921,14.46921483,1779.2,1778.5,57.02416018]
[1745798906123,25.66721483,1779.2,1779.1,1.1238]
[1745798906732,25.66721483,1779.2,1778.5,53.81636018]
[1745798906921,3.2078,1778.6,1777.8,63.9242]
[1745798907228,3.2078,1778.4,1778.2,1.12435]
[1745798907421,3.2078,1778.4,1778.3,1.1243]
[1745798907627,7.0098,1778.6,1778.5,1.12418]
[1745798907828,22.0098,1778.6,1777.9,2.8114]
[1745798908029,18.802,1778.6,1778.5,1.12418]
[1745798908228,18.802,1778.6,1778.4,1.12421]
[1745798908525,3.2078,1778.5,1778.4,1.12421]
[1745798908732,3.2078,1778.5,1777.8,63.05]
[1745798908931,16.12422,1778.5,1778.1,1.12441]
[1745798909131,3.2078,1778.3,1778.2,1.12437]
[1745798909524,18.2078,1778.3,1778.2,1.12437]
[1745798909923,15.0,1778.3,1777.9,2.8114]
[1745798910126,3.92469822,1778.5,1778.4,1.12424]
[1745798910332,0.71689822,1778.5,1778.4,1.12424]
[1745798910928,3.92469822,1778.5,1778.3,1.12426]
[1745798911127,3.92469822,1778.5,1777.8,65.86145]
[1745798911128,1.6818,1778.4,1777.8,65.86145]
[1745798911323,1.6818,1778.4,1778.3,1.1243]
[1745798911522,2.57871,1778.5,1778.4,1.12424]
[1745798911727,29.9246825,1779.5,1778.4,8.8198]
[1745798912035,12.44508397,1779.7,1779.6,1.12348]
[1745798913222,16.24708397,1779.7,1779.6,1.12348]
[1745798913428,15.04336397,1779.7,1779.6,6.12348]
[1745798913632,13.90839397,1779.7,1779.3,3.2078]
[1745798913834,13.90839397,1779.7,1779.6,1.12348]
[1745798914029,3.802,1779.7,1779.6,1.12348]
[1745798914239,2.64796,1779.7,1779.6,4.33128]
[1745798914537,10.10639397,1781.1,1779.9,5.612]
[1745798914738,10.10639397,1781.1,1780.3,6.01526]
[1745798914937,1.6361,1781.0,1780.9,1.12266]
[1745798915138,3.802,1781.0,1780.9,1.12266]
[1745798915533,3.802,1781.0,1780.6,3.2078]
[1745798915833,3.802,1781.0,1780.9,1.12266]
[1745798916137,3.802,1781.0,1780.9,4.33046]
[1745798916339,3.802,1781.0,1780.6,3.2078]
[1745798916533,1.12269,1780.9,1780.6,3.2078]
[1745798916739,1.6609,1780.8,1780.7,1.12279]
[1745798916931,1.6609,1780.8,1780.7,3.2078]
[1745798917133,5.4629,1780.8,1780.7,1.12279]
[1745798917536,5.4629,1780.8,1780.6,1.12281]
[1745798918141,1.12285,1780.6,1780.5,3.2078]
[1745798918336,10.4629,1780.8,1780.5,3.2078]
[1745798918537,1.12295,1780.5,1780.1,3.2078]
[1745798918841,1.6609,1780.4,1780.1,3.2078]
[1745798919242,6.5859,1780.4,1780.1,3.2078]
[1745798919935,10.4629,1780.4,1779.7,1.12341]
[1745798920137,10.4629,1780.4,1779.6,1.12345]
[1745798920138,1.12327,1780.0,1779.6,1.12345]
[1745798920338,1.717,1779.9,1779.5,4.33131]
[1745798920538,1.717,1779.9,1779.5,3.2078]
[1745798920734,1.717,1779.9,1779.8,1.12336]
[1745798920938,3.2078,1780.9,1780.5,1.12289]
[1745798921237,1.717,1780.8,1780.5,1.12289]
[1745798921444,2.83973,1780.8,1780.5,1.12289]
[1745798921834,2.83973,1780.8,1780.0,2.80808]
[1745798921835,1.717,1780.8,1780.7,3.2078]
[1745798922034,1.717,1780.8,1780.7,4.33059]
[1745798922240,5.519,1780.8,1780.7,4.33059]
[1745798922736,3.802,1780.8,1780.7,4.33059]
[1745798922937,2.34559,1780.8,1780.7,9.33059]
[1745798923137,6.81928,1782.3,1781.5,1.12224]
[1745798923442,3.2078,1782.1,1781.4,1.12233]
[1745798923742,0.44415788,1782.0,1781.4,1.12231]
[1745798923947,3.348,1782.1,1781.4,1.1223]
[1745798924138,1.12214,1781.8,1781.0,69.03629]
[1745798924443,3.2078,1781.9,1781.4,3.2078]
[1745798924637,3.9422,1782.1,1781.8,1.12205]
[1745798924845,4.9063,1782.0,1781.8,0.2806]
[1745798925046,1.12203,1781.9,1781.8,0.2806]
[1745798925240,1.6985,1781.9,1781.3,1.1224]
[1745798925438,4.9063,1781.9,1781.1,3.2078]
[1745798925641,4.9063,1781.9,1781.3,1.12238]
[1745798925837,4.9063,1781.9,1781.3,3.2078]
[1745798926037,2.82054,1781.9,1781.3,3.2078]
[1745798926242,5.5005,1781.9,1781.8,1.1221]
[1745798926845,5.5005,1781.9,1781.8,4.3299]
[1745798927050,5.5005,1781.9,1781.8,1.1221]
[1745798927248,5.5005,1781.9,1781.8,3.2078]
[1745798927751,5.5005,1781.9,1781.8,4.3299]
[1745798928848,1.12213,1781.8,1781.4,3.2078]
[1745798929152,1.12229,1781.5,1781.4,3.2078]
[1745798929449,1.12228,1781.6,1781.4,3.2078]
[1745798929747,1.6072,1781.5,1781.4,4.33015]
[1745798929948,1.6072,1781.8,1781.4,3.2078]
[1745798930250,5.4092,1781.8,1781.4,3.2078]
[1745798930551,5.4092,1781.8,1781.7,1.12216]
[1745798930741,3.802,1781.8,1781.7,1.12216]
[1745798931146,3.5214,1781.8,1781.7,6.12216]
[1745798931449,0.1402,1782.1,1782.0,1.12197]
[1745798932350,1.12126,1783.2,1782.4,2.80428]
[1745798932652,1.12126,1783.2,1782.4,6.01208]
[1745798932653,1.5842,1783.0,1782.4,6.01208]
[1745798932952,2.84574,1783.0,1782.7,1.12149]
[1745798933255,2.84574,1783.0,1782.5,3.4883]
[1745798933256,5.5264,1783.0,1782.9,3.2078]
[1745798933553,5.5264,1783.0,1782.6,3.2078]
[1745798933852,5.5264,1783.0,1782.9,1.1214]
[1745798934050,5.5264,1783.0,1782.9,4.3292]
[1745798934348,3.9422,1783.0,1782.9,4.3292]
[1745798934746,3.9422,1783.0,1782.9,9.3292]
[1745798934947,0.84225832,1783.6,1783.5,1.12103]
[1745798935148,4.64425832,1783.6,1783.5,1.12103]
[1745798935347,4.64425832,1783.6,1783.2,3.2078]
[1745798935543,1.6295,1783.5,1783.4,1.12106]
[1745798935748,4.78435832,1783.6,1783.5,1.12103]
[1745798936352,4.78435832,1783.6,1783.2,3.2078]
[1745798936559,1.6295,1783.5,1783.3,1.12112]
[1745798937158,5.4315,1783.5,1783.2,3.2078]
[1745798937349,6.55257,1783.5,1783.1,1.12125]
[1745798937746,5.4315,1783.5,1783.2,1.1212]
[1745798937954,1.12128,1783.1,1782.8,66.1878]
[1745798938154,1.7287,1783.0,1782.8,66.1878]
[1745798938347,1.7287,1783.0,1782.9,1.1214]
[1745798938551,7.0098,1783.5,1782.8,66.1878]
[1745798938751,1.7287,1783.4,1783.1,1.12128]
[1745798939261,5.5307,1783.4,1783.1,4.32904]
[1745798939462,5.5307,1783.4,1783.1,1.12124]
[1745798939961,5.5307,1783.4,1782.8,62.98]
[1745798939962,5.5307,1783.4,1783.2,4.32897]
[1745798940255,5.5307,1783.4,1783.2,1.12117]
[1745798940557,5.5307,1783.4,1783.3,4.32895]
[1745798940758,5.5307,1783.4,1783.0,3.2078]
[1745798940962,5.5307,1783.4,1783.1,1.12124]
[1745798942162,9.8596,1783.4,1783.0,3.2078]
[1745798942464,3.2078,1783.2,1782.7,3.2078]
[1745798942658,1.63,1783.1,1782.7,3.2078]
[1745798942961,1.63,1783.1,1783.0,1.12134]
[1745798943166,5.432,1783.1,1783.0,1.12134]
[1745798943664,3.2078,1783.8,1783.5,1.12103]
[1745798943859,4.8378,1784.0,1783.5,3.2078]
[1745798944058,1.5819,1783.7,1783.6,1.12096]
[1745798944465,0.8086,1784.2,1783.5,2.80252]
[1745798944675,1.5819,1784.1,1783.8,1.12082]
[1745798944873,1.5819,1784.1,1783.3,3.2078]
[1745798945069,5.3839,1784.1,1783.4,2.80273]
[1745798945272,5.3839,1784.1,1783.3,3.2078]
[1745798945469,6.50458,1784.1,1783.7,1.12086]
[1745798945772,5.3839,1784.1,1784.0,1.12071]
[1745798946564,5.3839,1784.1,1783.9,1.12075]
[1745798946762,1.12099,1783.6,1783.0,62.937]
[1745798946962,1.5819,1783.5,1783.0,62.937]
[1745798947173,1.5819,1783.5,1783.4,1.12109]
[1745798947174,3.802,1783.5,1783.4,1.12109]
[1745798947466,1.7407,1784.0,1783.9,1.12078]
[1745798947774,0.0248,1784.2,1783.9,1.12075]
[1745798947975,0.0248,1784.2,1784.0,1.12071]
[1745798947976,1.7407,1784.1,1784.0,1.12071]
[1745798948372,1.7407,1784.1,1783.8,3.2078]
[1745798948569,3.8268,1784.2,1784.1,1.12065]
[1745798949162,3.8268,1784.2,1784.0,4.32847]
[1745798949373,5.5675,1784.2,1784.1,1.12065]
[1745798949579,3.8268,1784.2,1783.8,3.2078]
[1745798949876,3.8268,1784.2,1784.0,1.12069]
[1745798950077,5.4966,1784.2,1784.0,1.12069]
[1745798951177,5.4966,1784.2,1783.6,1.12091]
[1745798951377,3.2078,1784.1,1783.5,3.2078]
[1745798951569,1.6698,1784.0,1783.5,3.2078]
[1745798951770,1.6698,1784.0,1783.7,1.12088]
[1745798951976,1.12078,1783.9,1783.6,1.12093]
[1745798952275,1.12102,1783.6,1783.2,1.12122]
[1745798952474,1.12102,1783.6,1783.1,1.6945]
[1745798952475,1.6698,1783.5,1783.0,62.937]
[1745798952673,1.6698,1783.5,1783.1,3.2078]
[1745798952873,1.6698,1783.5,1783.3,1.12111]
[1745798953075,5.4718,1783.5,1783.4,1.12109]
[1745798953279,3.802,1783.5,1783.4,1.12109]
[1745798953671,3.802,1783.5,1783.2,1.6933]
[1745798953870,3.802,1783.5,1783.3,1.1211]
[1745798954278,3.802,1783.5,1783.1,3.2078]
[1745798954577,3.2078,1783.4,1783.0,62.937]
[1745798954776,2.81575,1783.4,1783.1,1.12128]
[1745798954978,1.6946,1783.4,1783.3,1.12115]
[1745798955179,5.4966,1783.4,1783.3,1.12115]
[1745798955676,5.4966,1783.4,1783.2,0.2803]
[1745798956178,5.4966,1783.4,1783.2,1.40149]
[1745798956774,5.4966,1783.4,1783.2,1.40147]
[1745798956978,5.4966,1783.4,1783.3,1.12115]
[1745798957376,5.4966,1783.4,1783.2,0.2803]
[1745798957579,8.7044,1783.4,1783.2,0.2803]
[1745798957777,5.4966,1783.4,1783.2,0.2803]
[1745798957978,5.4966,1783.4,1783.3,1.12115]
[1745798958774,8.7044,1783.4,1783.0,53.55641503]
[1745798958978,8.7044,1783.4,1783.3,1.12115]
[1745798959178,8.7044,1783.4,1783.0,53.55641503]
[1745798959575,3.2078,1783.2,1783.0,54.67773503]
[1745798959889,1.6073,1783.1,1783.0,54.67773503]
[1745798960078,3.802,1783.2,1783.1,1.12128]
[1745798961476,2.55915,1783.2,1783.1,6.12128]
[1745798961674,3.2078,1783.6,1783.2,2.80304]
[1745798961880,3.2078,1784.1,1783.5,6.01022]
[1745798962078,0.43731136,1784.0,1783.9,1.12078]
[1745798962776,7.0098,1784.1,1784.0,1.12071]
[1745798962976,7.43976866,1784.1,1784.0,1.12071]
[1745798963179,12.43976866,1784.1,1783.8,3.2078]
[1745798963479,1.55069866,1784.0,1783.4,3.2078]
[1745798963783,4.3286,1783.9,1783.5,1.12097]
[1745798963983,4.3286,1783.9,1783.4,3.2078]
[1745798964187,3.2078,1783.7,1783.0,55.14951503]
[1745798964380,3.2078,1783.5,1783.2,1.12118]
[1745798964680,3.2078,1783.5,1783.2,1.12121]
[1745798964884,3.2078,1783.5,1783.2,1.12115]
[1745798965079,1.7088,1783.4,1783.2,1.12115]
[1745798965282,3.2078,1783.3,1782.9,0.2804]
[1745798965474,4.32914,1783.0,1782.9,0.2804]
[1745798965674,1.12155,1782.7,1782.3,1.12176]
[1745798965876,1.12155,1782.7,1781.9,3.85635116]
[1745798965877,1.12179,1782.3,1781.8,1.21971282]
[1745798966078,4.8356,1782.2,1781.6,1.6777]
[1745798966274,3.2078,1782.0,1781.4,62.905]
[1745798966481,1.6278,1781.9,1781.4,62.905]
[1745798966781,1.6278,1781.9,1781.7,1.12212]
[1745798967084,5.4298,1781.9,1781.7,1.12212]
[1745798967683,5.4298,1781.9,1781.4,60.91723536]
[1745798968078,5.4298,1781.9,1781.7,1.12212]
[1745798968472,5.4298,1781.9,1781.4,60.91723536]
[1745798968473,5.4298,1781.9,1781.4,57.70943536]
[1745798968678,5.4298,1781.9,1781.0,1.12257]
[1745798968679,3.2078,1781.5,1781.0,1.12257]
[1745798968874,3.2078,1781.3,1780.4,3.2078]
[1745798969083,6.6874,1781.2,1780.4,3.2078]
[1745798969286,6.6874,1781.2,1781.0,1.12259]
[1745798969782,6.6874,1781.2,1780.4,3.2078]
[1745798969783,3.2078,1781.1,1780.4,3.2078]
[1745798969986,3.2078,1780.9,1780.4,3.2078]
[1745798970289,6.6874,1780.8,1780.6,1.12285]
[1745798970488,3.2078,1780.7,1780.5,1.12289]
[1745798970787,6.6874,1780.6,1780.5,1.12289]
[1745798971174,10.4894,1780.6,1780.2,10.461]
[1745798971486,10.4894,1780.6,1780.3,1.12299]
[1745798971487,3.2078,1780.5,1780.3,1.12299]
[1745798971678,6.669,1780.4,1780.3,1.12299]
[1745798972082,6.669,1780.4,1780.2,11.58407]
[1745798972285,10.471,1780.4,1780.3,1.12304]
[1745798973776,2.38854,1780.4,1780.3,6.12304]
[1745798974083,3.2078,1781.2,1781.0,1.12256]
[1745798974284,3.2078,1781.2,1780.7,6.7224]
[1745798974584,3.2078,1780.8,1780.6,1.12281]
[1745798974789,6.2301,1780.7,1780.6,1.12281]
[1745798975093,10.0321,1780.7,1780.6,1.12281]
[1745798975385,2.80716,1780.6,1779.5,0.09777245]
[1745798975581,3.2078,1779.9,1779.8,1.12336]
[1745798976082,7.0098,1779.9,1779.4,6.2676]
[1745798976286,6.2301,1779.8,1779.5,1.12355]
[1745798976483,3.2078,1779.7,1779.6,1.12345]
[1745798977182,3.802,1779.7,1779.6,1.12345]
[1745798977377,2.4915,1779.7,1779.6,6.12345]
[1745798977584,3.2078,1780.5,1780.4,1.12298]
[1745798977790,3.2078,1780.5,1780.3,1.123]
[1745798978085,7.0098,1780.5,1780.3,1.123]
[1745798978289,7.0098,1780.5,1780.2,1.12306]
[1745798978482,3.2078,1780.3,1779.5,3.2078]
[1745798978688,3.2078,1779.9,1779.4,10.187]
[1745798978876,3.2078,1780.1,1779.5,2.80879]
[1745798979081,3.2078,1780.1,1780.0,1.12323]
[1745798979280,7.0098,1780.1,1780.0,1.12323]
[1745798979793,3.802,1780.1,1780.0,1.12323]
[1745798982382,9.472,1781.0,1780.0,71.2028]
[1745798982583,9.472,1781.0,1780.9,1.12266]
[1745798982788,10.43700726,1781.4,1781.0,1.1226]
[1745798982789,5.46220726,1781.4,1781.0,1.1226]
[1745798982994,11.72640726,1781.4,1781.3,1.12241]
[1745798983191,10.0662,1781.4,1781.3,1.12241]
[1745798983593,10.0662,1781.4,1781.0,3.2078]
[1745798983787,10.0662,1781.4,1781.3,1.12241]
[1745798985395,15.0662,1781.4,1780.5,3.2078]
[1745798985695,3.2078,1781.2,1780.9,1.12263]
[1745798985894,6.31,1781.1,1781.0,1.1226]
[1745798986094,3.802,1781.4,1780.9,3.2078]
[1745798986294,3.802,1781.1,1781.0,1.1226]
[1745798986494,3.802,1781.1,1780.9,10.79719095]
[1745798986694,3.802,1781.1,1781.0,4.3304]
[1745798987900,3.2078,1781.6,1781.5,1.12229]
[1745798988090,13.2576,1781.6,1781.5,1.12229]
[1745798988398,10.0498,1781.6,1781.5,1.12229]
[1745798988899,3.802,1781.6,1781.5,1.12229]
[1745798989489,3.802,1781.6,1781.4,0.03561131]
[1745798989694,3.802,1781.6,1781.2,12.37248]
[1745798989992,3.802,1781.6,1781.5,1.12229]
[1745798990993,3.802,1781.6,1781.2,9.5664]
[1745798991202,3.2078,1781.5,1781.4,1.1223]
[1745798991595,10.5529,1781.6,1781.5,1.12229]
[1745798991794,3.802,1781.6,1781.5,11.00229]
[1745798992003,3.802,1781.6,1781.5,16.00229]
[1745798992196,2.57136,1781.6,1781.5,16.00229]
[1745798992392,2.57136,1781.6,1781.5,22.85939]
[1745798992599,2.57136,1781.6,1781.5,11.00229]
[1745798993498,9.32956,1781.6,1781.5,11.00229]
[1745798994903,14.32956,1781.6,1781.1,1.12249]
[1745798995196,9.32956,1781.6,1781.3,1.12238]
[1745798995399,3.2078,1781.4,1781.3,1.12238]
[1745798996302,7.0098,1781.4,1781.3,1.12241]
[1745798997599,3.802,1781.4,1781.3,6.12241]
[1745798998301,3.802,1781.4,1781.3,1.12241]
[1745799000510,3.802,1781.4,1781.0,9.589]
[1745799000704,3.2078,1781.2,1781.1,1.12254]
[1745799001509,7.0098,1781.4,1781.3,1.12241]
[1745799003110,7.0098,1781.4,1781.0,9.589]
[1745799003310,8.3792,1781.3,1781.0,9.589]
[1745799003611,8.3792,1781.3,1781.2,1.12247]
[1745799003808,8.3792,1781.3,1781.0,9.589]
[1745799004013,3.2078,1781.2,1780.4,17.5917]
[1745799004207,3.2078,1780.9,1780.8,1.12273]
[1745799005104,8.3792,1781.1,1781.0,1.1226]
[1745799005309,8.3792,1781.1,1781.0,10.4386]
[1745799005612,1.12304,1780.4,1779.7,9.316]
[1745799005908,3.2078,1779.9,1779.7,9.316]
[1745799006109,7.0098,1779.9,1779.7,9.316]
[1745799006411,7.0098,1779.9,1779.8,1.12336]
[1745799006412,3.802,1779.9,1779.8,1.12336]
[1745799006612,3.802,1779.9,1779.8,9.64676]
[1745799007310,3.2078,1780.2,1780.1,1.12317]
[1745799007708,3.2078,1780.2,1779.8,8.5234]
[1745799007909,8.5124,1780.1,1780.0,1.12321]
[1745799008106,12.3144,1780.1,1780.0,1.12321]
[1745799008306,3.802,1780.1,1780.0,1.12321]
[1745799010212,3.2078,1780.2,1780.1,1.12317]
[1745799010904,3.2078,1780.4,1780.0,2.80801]
[1745799011106,3.2078,1780.4,1780.3,1.12304]
[1745799011405,3.2078,1780.9,1780.6,1.12285]
[1745799011606,7.24047268,1781.0,1780.9,1.12266]
[1745799011808,12.24047268,1781.0,1780.4,8.1028]
[1745799012112,3.2078,1780.9,1780.8,1.12273]
[1745799012309,11.04247268,1781.0,1780.4,8.1028]
[1745799012700,11.04247268,1781.0,1780.8,1.12268]
[1745799012903,11.04247268,1781.0,1780.9,1.12266]
[1745799013299,11.04247268,1781.0,1780.9,10.15166]
[1745799013514,11.04247268,1781.0,1780.9,13.35946]
[1745799014014,3.802,1781.0,1780.9,18.35946]
[1745799014200,13.869,1782.4,1782.0,1.12197]
[1745799014406,47.2865087,1782.2,1782.0,1.12197]
[1745799014608,19.434247,1782.1,1781.8,1.12206]
[1745799014807,3.2078,1782.0,1781.9,0.2805]
[1745799015114,8.5712,1782.0,1781.9,1.40253]
[1745799015514,8.5712,1782.0,1781.9,0.2805]
[1745799015714,13.5712,1782.0,1781.9,0.2805]
[1745799016109,17.3732,1782.0,1781.9,0.2805]
[1745799016319,20.581,1782.0,1781.7,1.12216]
[1745799016615,20.581,1782.0,1781.6,13.35898]
[1745799016616,15.581,1782.0,1781.6,13.35898]
[1745799017014,15.581,1782.0,1781.9,1.12203]
[1745799017418,12.3732,1782.0,1781.9,1.12203]
[1745799017611,15.581,1782.0,1781.8,1.12205]
[1745799017817,15.581,1782.0,1781.7,1.12211]
[1745799018015,15.581,1782.0,1781.6,9.029]
[1745799018209,15.581,1782.0,1781.7,1.12211]
[1745799018414,15.581,1782.0,1781.8,1.12206]
[1745799018617,12.3732,1782.0,1781.8,1.12206]
[1745799019320,12.3732,1782.0,1781.6,9.029]
[1745799019616,15.581,1782.0,1781.6,9.029]
[1745799019822,3.2078,1781.7,1781.6,1.12222]
[1745799020212,7.0098,1781.7,1781.5,1.12226]
[1745799020512,8.4813,1781.6,1781.5,1.12226]
[1745799020817,8.4813,1781.6,1781.1,8.755]
[1745799021019,8.4813,1781.6,1780.6,9.87685]
[1745799021020,1.12257,1781.1,1780.6,9.87685]
[1745799021214,3.2078,1780.8,1780.6,8.754]
[1745799021421,8.4813,1780.7,1780.6,8.754]
[1745799022019,8.4813,1780.7,1780.6,9.87685]
[1745799022214,12.2833,1780.7,1780.6,9.87685]
[1745799022716,17.2833,1780.7,1780.6,8.754]
[1745799022913,17.2833,1780.7,1780.2,8.44340689]
[1745799023114,3.2078,1780.4,1780.2,8.44340689]
[1745799023317,8.2584,1780.3,1780.2,8.44340689]
[1745799024122,12.0604,1780.3,1780.2,8.44343689]
[1745799025023,17.0604,1780.3,1780.2,7.32033689]
[1745799025212,17.0604,1780.3,1780.1,10.90352489]
[1745799025213,1.1231,1780.2,1780.1,10.90352489]
[1745799025412,12.5893,1780.2,1780.1,10.90352489]
[1745799025617,16.4662,1780.2,1780.1,10.90352489]
[1745799026013,11.4662,1780.2,1780.1,12.02669489]
[1745799026216,3.2078,1780.5,1780.4,1.12298]
[1745799026421,3.2078,1780.8,1780.7,1.12279]
[1745799026717,12.9654,1781.0,1780.9,1.12266]
[1745799026923,3.2078,1781.5,1781.1,1.12249]
[1745799027115,3.802,1781.0,1780.7,9.0832]
[1745799027315,3.802,1781.0,1780.6,9.60581]
[1745799027926,3.802,1781.0,1780.7,1.12278]
[1745799028818,3.2078,1780.9,1780.8,1.12273]
[1745799029025,3.802,1781.0,1780.9,1.12266]
[1745799029321,3.2078,1781.3,1781.0,1.12256]
[1745799029513,3.2078,1781.3,1781.1,1.12254]
[1745799029720,3.2078,1781.5,1780.9,3.2078]
[1745799030024,9.0428,1781.6,1781.1,1.12254]
[1745799030025,3.2078,1781.3,1781.1,1.12254]
[1745799030226,3.2078,1781.3,1781.0,10.46286]
[1745799030532,3.2078,1781.1,1780.6,8.483]
[1745799030722,3.2078,1780.8,1780.6,8.483]
[1745799030923,3.2078,1780.8,1780.6,9.60585]
[1745799031120,7.0098,1780.8,1780.6,8.483]
[1745799031423,9.3791,1780.7,1780.6,8.483]
[1745799032116,14.30389,1780.7,1780.6,8.483]
[1745799032416,14.30389,1780.7,1780.1,9.33615]
[1745799032417,18.1811,1780.7,1780.1,9.33615]
[1745799032626,3.2078,1780.4,1780.1,8.213]
[1745799032919,1.12327,1780.0,1779.5,8.213]
[1745799033119,3.2078,1779.8,1779.5,8.213]
[1745799033313,4.33128,1779.6,1779.5,0.5878369]
[1745799033626,4.33133,1779.6,1779.0,1.12386]
[1745799033817,3.2078,1779.4,1779.0,1.12383]
[1745799034018,3.2078,1779.4,1779.0,10.57532]
[1745799034217,7.0098,1779.4,1779.0,10.57532]
[1745799034511,3.802,1779.4,1779.3,1.12367]
[1745799034713,3.2078,1779.8,1779.3,1.12367]
[1745799034916,3.2078,1780.2,1779.5,3.2078]
[1745799035123,3.2078,1780.2,1780.1,1.12317]
[1745799035323,3.2078,1780.5,1779.8,3.2078]
[1745799035617,3.2078,1780.5,1779.9,9.511]
[1745799035817,9.15268047,1780.2,1779.9,9.511]
[1745799036016,9.15268047,1780.2,1780.0,1.12321]
[1745799036218,12.95468047,1780.2,1780.0,1.12323]
[1745799036523,12.95468047,1780.2,1780.0,1.12319]
[1745799036918,3.2078,1780.1,1779.6,8.213]
[1745799037117,3.2078,1779.9,1779.6,17.724]